bitfinex/quotes_SOLUSD_20251130
["timestamp","ask_amount","ask_price","bid_price","bid_amount"]
[1764545507849,0.2,135.69,135.65,5.02362115]
[1764545508024,0.2,135.69,135.65,0.66]
[1764545508224,0.2,135.69,135.66,3.28]
[1764545508636,0.2,135.69,135.67,0.66]
[1764545510232,0.2,135.69,135.68,0.66]
[1764545510435,0.2,135.69,135.64,5.02362115]
[1764545510631,0.2,135.69,135.65,3.28]
[1764545510832,0.2,135.69,135.65,3.94]
[1764545511052,0.2,135.69,135.66,0.66]
[1764545511548,5.02362115,135.67,135.63,0.66]
[1764545511864,5.02362115,135.67,135.57,7.37626318]
[1764545511865,5.02362115,135.64,135.57,7.37626318]
[1764545512147,5.02362115,135.64,135.59,0.66]
[1764545512325,5.02362115,135.63,135.59,3.94]
[1764545512527,5.02362115,135.63,135.6,0.66]
[1764545512852,8.26997333,135.67,135.57,3.28]
[1764545512853,5.02362115,135.61,135.57,3.28]
[1764545513044,5.02362115,135.6,135.57,3.28]
[1764545513251,5.02362115,135.61,135.57,0.66]
[1764545513655,5.02362115,135.6,135.57,0.66]
[1764545514749,5.02362115,135.59,135.53,23.68707732]
[1764545514956,5.02362115,135.58,135.55,0.66]
[1764545515133,5.02362115,135.57,135.53,8.03821332]
[1764545515453,5.02362115,135.54,135.5,0.66]
[1764545515647,12.40206134,135.53,135.5,0.66]
[1764545515841,5.02362115,135.53,135.5,0.66]
[1764545517048,5.02362115,135.52,135.5,0.66]
[1764545517646,5.02362115,135.53,135.5,0.66]
[1764545518347,5.02362115,135.53,135.5,3.94]
[1764545518556,5.71362115,135.52,135.47,4.51411171]
[1764545518850,5.71362115,135.52,135.47,8.04169351]
[1764545519054,5.71362115,135.52,135.48,0.66]
[1764545519255,5.71362115,135.52,135.48,3.94]
[1764545519849,12.40271693,135.52,135.49,0.66]
[1764545520152,5.02362115,135.51,135.45,7.38226872]
[1764545520338,0.69,135.51,135.45,12.40588987]
[1764545520542,5.71362115,135.51,135.46,0.66]
[1764545521341,0.69,135.51,135.46,0.66]
[1764545521545,7.37963258,135.51,135.46,13.06556683]
[1764545521943,7.37963258,135.51,135.47,0.66]
[1764545522339,8.80994492,135.56,135.47,0.66]
[1764545522340,0.69,135.57,135.5,5.02362115]
[1764545522653,5.71362115,135.56,135.5,8.32362115]
[1764545522839,7.37571913,135.58,135.53,5.02362115]
[1764545523042,8.06571913,135.58,135.53,5.02362115]
[1764545523244,0.69,135.57,135.53,3.96]
[1764545523446,0.69,135.57,135.53,8.98362115]
[1764545523637,8.06628724,135.57,135.53,8.98362115]
[1764545524250,7.37565883,135.59,135.55,5.02362115]
[1764545524558,18.43760752,135.6,135.54,5.68362115]
[1764545524559,7.37495367,135.6,135.54,5.68362115]
[1764545524741,7.37495367,135.6,135.57,5.02362115]
[1764545524944,25.80816733,135.62,135.57,5.02362115]
[1764545525150,26.49816733,135.62,135.58,0.66]
[1764545526762,7.37395203,135.62,135.58,5.68362115]
[1764545527354,7.37395203,135.62,135.59,0.66]
[1764545527660,7.37300386,135.63,135.59,0.66]
[1764545529163,8.06300386,135.63,135.59,0.66]
[1764545530562,5.02362115,135.6,135.49,75.0]
[1764545530769,16.308864,135.57,135.48,0.66]
[1764545530968,3.3,135.59,135.49,5.02362115]
[1764545530969,3.99,135.59,135.49,5.02362115]
[1764545531274,5.71362115,135.59,135.52,5.02362115]
[1764545531656,5.71362115,135.59,135.53,0.66]
[1764545531872,16.308864,135.63,135.54,8.32362115]
[1764545532079,5.02362115,135.62,135.56,5.02362115]
[1764545532248,5.02362115,135.62,135.54,3.3]
[1764545532249,7.37371777,135.62,135.55,5.68362115]
[1764545532568,0.69,135.63,135.55,5.68362115]
[1764545532759,5.02362115,135.62,135.56,0.66]
[1764545533172,8.06304356,135.63,135.53,31.50771723]
[1764545533173,5.02362115,135.59,135.53,31.50771723]
[1764545533473,5.02362115,135.58,135.53,11.33841287]
[1764545533876,12.39966711,135.58,135.54,0.66]
[1764545534081,7.37604596,135.58,135.54,0.66]
[1764545534665,0.69,135.63,135.57,5.02362115]
[1764545534874,0.69,135.63,135.58,5.02362115]
[1764545535076,7.37354372,135.62,135.57,3.96]
[1764545535276,7.37354372,135.62,135.57,8.98362115]
[1764545535592,7.37354372,135.62,135.58,0.66]
[1764545535765,0.69,135.62,135.58,0.66]
[1764545536771,5.02362115,135.59,135.52,0.73789846]
[1764545536976,0.69,135.62,135.53,0.66]
[1764545537183,5.02362115,135.59,135.53,5.68362115]
[1764545537955,7.37571913,135.58,135.53,5.68362115]
[1764545538189,5.02362115,135.57,135.53,0.66]
[1764545538363,34.37013848,135.58,135.53,0.66]
[1764545538975,8.06571913,135.58,135.53,8.03834202]
[1764545539273,8.06571913,135.58,135.53,0.66]
[1764545539478,8.06571913,135.58,135.52,3.3]
[1764545539479,0.69,135.57,135.52,3.3]
[1764545540079,25.81501696,135.58,135.53,8.03831364]
[1764545540080,7.37571913,135.58,135.53,8.03831364]
[1764545540454,0.69,135.57,135.53,8.03831364]
[1764545541100,8.06651302,135.57,135.53,8.03831364]
[1764545541382,8.06651302,135.57,135.52,3.3]
[1764545541383,7.86512152,135.56,135.52,3.3]
[1764545541588,7.86512152,135.56,135.5,3.96]
[1764545541589,7.86512152,135.55,135.5,3.96]
[1764545542087,8.55512152,135.55,135.5,3.96]
[1764545542392,8.55512152,135.55,135.5,3.3]
[1764545542683,8.55512152,135.55,135.51,0.66]
[1764545543256,7.37789582,135.54,135.51,0.66]
[1764545544063,7.37746306,135.55,135.51,8.0394428]
[1764545544486,7.37746306,135.55,135.51,15.90456432]
[1764545544687,7.37746306,135.55,135.52,0.66]
[1764545545291,7.37680731,135.56,135.52,0.66]
[1764545545588,7.37680731,135.56,135.52,8.03884046]
[1764545545883,8.07680731,135.56,135.52,8.03884046]
[1764545546892,7.37626318,135.57,135.53,0.68]
[1764545547073,7.37626318,135.57,135.53,8.54512152]
[1764545547269,8.07626318,135.57,135.53,8.54512152]
[1764545548078,8.07626318,135.57,135.53,15.92332879]
[1764545549383,7.37396766,135.62,135.56,7.86512152]
[1764545549591,0.7,135.63,135.54,8.54512152]
[1764545549894,0.7,135.63,135.58,7.86512152]
[1764545550499,0.7,135.63,135.58,8.54512152]
[1764545550702,7.37354372,135.62,135.58,8.54512152]
[1764545550903,8.07311365,135.63,135.58,15.92081938]
[1764545551974,7.86512152,135.61,135.55,0.68]
[1764545552195,7.86512152,135.6,135.53,8.54512152]
[1764545552401,0.7,135.62,135.51,0.68]
[1764545552402,7.86512152,135.55,135.51,0.68]
[1764545552708,7.86512152,135.53,135.48,11.91276923]
[1764545552992,7.86512152,135.54,135.48,19.22621084]
[1764545553295,15.9425515,135.55,135.49,0.68]
[1764545553780,7.86512152,135.54,135.49,0.68]
[1764545554094,8.56512152,135.54,135.49,0.68]
[1764545554799,0.7,135.54,135.49,8.06052794]
[1764545554995,0.7,135.54,135.5,0.68]
[1764545555496,8.07804521,135.54,135.5,0.68]
[1764545555994,15.94316673,135.54,135.5,0.68]
[1764545557199,8.07804521,135.54,135.5,8.0597817]
[1764545560798,7.37739797,135.55,135.51,0.68]
[1764545560981,15.94251949,135.55,135.51,0.68]
[1764545561176,0.7,135.54,135.5,7.3797817]
[1764545561377,8.56512152,135.54,135.5,7.3797817]
[1764545561781,0.7,135.53,135.5,7.3797817]
[1764545562603,7.37807442,135.54,135.5,7.3797817]
[1764545562798,7.37807442,135.54,135.46,3.85421701]
[1764545562799,0.7,135.53,135.47,0.68]
[1764545563105,0.7,135.53,135.46,34.15476587]
[1764545563106,7.86512152,135.52,135.46,34.15476587]
[1764545563288,0.7,135.53,135.47,8.54512152]
[1764545563678,0.7,135.53,135.48,0.68]
[1764545564310,8.07883538,135.53,135.48,8.06074589]
[1764545564493,7.86512152,135.51,135.46,7.3818898]
[1764545564805,0.7,135.52,135.46,10.6818898]
[1764545564980,7.86512152,135.51,135.46,10.6818898]
[1764545565180,7.86512152,135.51,135.46,7.3818898]
[1764545565380,8.56512152,135.5,135.45,0.68]
[1764545565595,8.56512152,135.49,135.45,0.68]
[1764545565807,7.86512152,135.48,135.44,7.38295906]
[1764545566009,8.56512152,135.48,135.44,7.38295906]
[1764545566305,8.56512152,135.48,135.43,0.68]
[1764545566306,0.7,135.47,135.43,0.68]
[1764545566508,7.86512152,135.44,135.41,0.1]
[1764545566693,7.86512152,135.43,135.41,0.1]
[1764545566889,0.7,135.45,135.41,0.1]
[1764545567092,7.86512152,135.42,135.35,7.38802438]
[1764545567402,8.80994492,135.43,135.32,14.90076063]
[1764545567607,7.86512152,135.37,135.32,14.90076063]
[1764545567811,7.86512152,135.38,135.32,11.72228445]
[1764545568110,7.86512152,135.37,135.32,11.72228445]
[1764545568398,7.86512152,135.37,135.32,11.2223056]
[1764545568607,0.7,135.36,135.32,10.2223056]
[1764545568801,25.85124455,135.39,135.33,0.68]
[1764545569010,7.38497895,135.41,135.35,7.86512152]
[1764545569177,7.86512152,135.42,135.36,7.86512152]
[1764545569383,8.56512152,135.42,135.36,3.3]
[1764545569576,8.56512152,135.42,135.36,3.98]
[1764545569985,0.7,135.42,135.37,0.68]
[1764545570393,8.0844534,135.42,135.37,8.06716058]
[1764545570702,15.94957492,135.42,135.37,8.06716058]
[1764545570888,15.24916918,135.43,135.38,0.68]
[1764545571087,7.38404766,135.43,135.38,0.68]
[1764545571304,15.94916918,135.43,135.38,0.68]
[1764545571490,15.24916918,135.43,135.38,0.68]
[1764545571695,0.7,135.42,135.38,0.68]
[1764545572414,0.7,135.42,135.38,8.06643658]
[1764545572908,0.7,135.44,135.39,0.68]
[1764545573635,8.08338555,135.44,135.39,0.68]
[1764545573799,15.94850707,135.44,135.39,0.68]
[1764545573999,0.7,135.43,135.39,0.68]
[1764545574184,8.56512152,135.43,135.37,7.38703519]
[1764545574390,15.94945065,135.43,135.37,11.36703519]
[1764545574698,15.94945065,135.43,135.37,19.23215671]
[1764545575118,8.56512152,135.43,135.38,0.68]
[1764545575323,0.7,135.43,135.38,0.68]
[1764545575820,15.94917867,135.43,135.38,0.68]
[1764545576407,0.7,135.43,135.39,7.38606987]
[1764545577221,15.94917003,135.43,135.39,7.38606987]
[1764545577722,8.08404851,135.43,135.39,7.38606987]
[1764545577927,7.86512152,135.4,135.33,0.67]
[1764545578133,7.86512152,135.38,135.33,0.67]
[1764545578521,8.55512152,135.37,135.33,0.67]
[1764545578913,8.55512152,135.37,135.33,8.05929955]
[1764545579428,8.55512152,135.37,135.32,2.82246913]
[1764545579609,0.69,135.37,135.33,0.67]
[1764545580208,8.55512152,135.37,135.32,2.15246913]
[1764545580414,7.38934456,135.33,135.32,2.15246913]
[1764545580732,8.07934456,135.33,135.32,2.15246913]
[1764545581018,15.94446608,135.33,135.32,2.15246913]
[1764545581222,8.07934456,135.33,135.32,1.43246913]
[1764545581414,15.91446608,135.33,135.32,1.43246913]
[1764545581716,7.38934456,135.33,135.32,1.43246913]
[1764545583027,7.38849107,135.35,135.32,2.10246913]
[1764545583219,7.38849107,135.35,135.33,0.67]
[1764545583414,7.38849107,135.35,135.32,2.10246913]
[1764545584326,7.38739664,135.37,135.33,0.67]
[1764545584831,7.86512152,135.36,135.32,1.43246913]
[1764545585128,7.86512152,135.36,135.32,2.10246913]
[1764545585305,7.86512152,135.34,135.32,1.43246913]
[1764545585509,11.82512152,135.36,135.32,2.10246913]
[1764545585928,3.3,135.36,135.32,2.10246913]
[1764545586151,11.16512152,135.36,135.32,2.10246913]
[1764545586430,3.3,135.36,135.32,2.10246913]
[1764545587121,7.38824632,135.36,135.32,2.10246913]
[1764545587320,8.04824632,135.36,135.32,2.10246913]
[1764545587536,7.38824632,135.36,135.32,2.10246913]
[1764545588815,25.85506389,135.37,135.32,2.10246913]
[1764545589015,26.51506389,135.37,135.32,2.10246913]
[1764545589219,25.85506389,135.37,135.33,0.67]
[1764545589930,33.72018541,135.37,135.33,0.67]
[1764545591108,3.96,135.39,135.33,0.67]
[1764545591109,11.16512152,135.39,135.33,15.92446166]
[1764545591311,3.3,135.39,135.33,15.92446166]
[1764545591522,11.16512152,135.39,135.34,0.67]
[1764545591713,128.51880892,135.44,135.35,7.86512152]
[1764545591714,0.66,135.43,135.35,7.86512152]
[1764545591919,7.38388835,135.43,135.36,7.86512152]
[1764545592124,7.86512152,135.42,135.37,0.67]
[1764545592520,7.86512152,135.41,135.37,0.67]
[1764545592714,0.66,135.42,135.34,3.97]
[1764545592919,15.25144164,135.39,135.35,0.67]
[1764545593323,15.25144164,135.39,135.33,7.86512152]
[1764545593324,7.86512152,135.36,135.32,1.43246913]
[1764545593530,7.86512152,135.33,135.32,1.43246913]
[1764545594042,8.52512152,135.33,135.32,1.43246913]
[1764545595114,34.38782749,135.33,135.24,0.1]
[1764545595320,9.46994492,135.32,135.24,0.1]
[1764545595627,7.86512152,135.28,135.24,0.1]
[1764545595839,7.86512152,135.27,135.24,0.1]
[1764545596299,7.86512152,135.26,135.24,0.1]
[1764545596408,0.66,135.26,135.24,0.1]
[1764545596612,3.3,135.25,135.24,0.1]
[1764545597137,19.21883686,135.25,135.24,0.1]
[1764545598339,16.39865892,135.25,135.24,0.1]
[1764545599659,0.66,135.29,135.24,0.1]
[1764545599835,5.04494358,135.25,135.24,0.1]
[1764545600240,5.70494358,135.25,135.24,0.1]
[1764545600467,5.04494358,135.25,135.24,0.1]
[1764545601172,7.39371534,135.25,135.24,0.1]
[1764545601340,12.43865892,135.25,135.24,0.1]
[1764545602156,7.39371534,135.25,135.24,0.1]
[1764545604843,12.43865892,135.25,135.24,0.1]
[1764545605261,25.87534683,135.27,135.24,0.1]
[1764545605464,5.04494358,135.26,135.24,0.82]
[1764545605872,5.04494358,135.26,135.24,0.1]
[1764545606554,7.39371534,135.25,135.24,0.1]
[1764545608186,12.43865892,135.25,135.24,0.1]
[1764545608348,15.73865892,135.25,135.24,0.1]
[1764545609379,16.39865892,135.25,135.24,0.1]
[1764545612778,9.00494358,135.25,135.24,0.1]
[1764545613378,16.39865892,135.25,135.24,0.1]
[1764545615012,11.35371534,135.25,135.24,0.1]
[1764545615171,10.69371534,135.25,135.24,0.1]
[1764545615504,3.3,135.25,135.24,0.1]
[1764545615709,7.39359056,135.26,135.24,0.1]
[1764545616004,12.43853414,135.26,135.24,0.1]
[1764545616581,7.39359056,135.26,135.24,0.1]
[1764545616900,0.66,135.31,135.24,0.77]
[1764545617095,5.04494358,135.29,135.24,0.77]
[1764545617975,15.73592658,135.3,135.24,0.77]
[1764545618182,15.73592658,135.3,135.24,5.81494358]
[1764545618477,5.04494358,135.31,135.25,5.04494358]
[1764545618673,7.38606987,135.39,135.28,5.04494358]
[1764545618879,5.04494358,135.36,135.29,5.04494358]
[1764545619099,5.04494358,135.35,135.29,5.04494358]
[1764545619403,5.04494358,135.3,135.24,0.77]
[1764545619584,5.04494358,135.29,135.24,0.1]
[1764545619791,5.04494358,135.29,135.25,0.67]
[1764545620395,5.04494358,135.28,135.25,0.67]
[1764545621320,5.04494358,135.27,135.25,0.67]
[1764545622286,5.04494358,135.26,135.24,0.1]
[1764545622492,5.04494358,135.25,135.24,0.1]
[1764545623293,5.70494358,135.25,135.24,0.1]
[1764545623820,5.70494358,135.25,135.24,1e-08]
[1764545625012,21.90860384,135.25,135.24,1e-08]
[1764545626212,63.50658039,135.25,135.14,3.8636444]
[1764545626402,36.13992604,135.34,135.14,3.8636444]
[1764545626403,0.66,135.32,135.23,5.04494358]
[1764545626710,5.04494358,135.29,135.22,5.04494358]
[1764545627091,5.04494358,135.29,135.23,0.67]
[1764545627491,7.39207569,135.28,135.23,0.67]
[1764545628117,12.43701927,135.28,135.23,0.67]
[1764545628730,7.39207569,135.28,135.23,0.67]
[1764545629127,5.04494358,135.29,135.23,0.67]
[1764545629495,5.04494358,135.3,135.23,5.71494358]
[1764545629927,5.04494358,135.3,135.24,0.67]
[1764545630307,0.66,135.32,135.24,0.67]
[1764545630308,12.4348342,135.32,135.24,0.67]
[1764545630709,5.04494358,135.31,135.24,9.03494358]
[1764545630904,5.04494358,135.31,135.24,3.99]
[1764545631118,18.47215842,135.34,135.27,5.04494358]
[1764545631422,5.04494358,135.39,135.32,5.04494358]
[1764545631622,5.04494358,135.38,135.31,5.04494358]
[1764545632001,5.04494358,135.38,135.32,0.67]
[1764545632201,5.04494358,135.37,135.32,0.67]
[1764545632526,7.38716111,135.37,135.32,0.67]
[1764545633203,5.04494358,135.34,135.29,0.67]
[1764545633522,5.04494358,135.33,135.29,0.67]
[1764545634021,5.04494358,135.34,135.29,0.67]
[1764545634225,0.66,135.36,135.29,0.67]
[1764545634523,7.38934456,135.33,135.29,0.67]
[1764545634821,12.43428814,135.33,135.29,0.67]
[1764545635030,7.38934456,135.33,135.29,0.67]
[1764545635727,5.04494358,135.36,135.29,13.10643762]
[1764545636203,5.04494358,135.36,135.3,0.69]
[1764545636408,18.46835549,135.37,135.3,5.73494358]
[1764545636409,23.51329907,135.37,135.3,5.73494358]
[1764545636907,5.04494358,135.37,135.31,0.69]
[1764545637110,5.04494358,135.36,135.31,0.69]
[1764545637805,5.04494358,135.38,135.32,5.04494358]
[1764545638212,25.85124455,135.39,135.33,0.69]
[1764545638513,7.38606987,135.39,135.33,5.73494358]
[1764545638717,12.43059378,135.4,135.33,0.69]
[1764545639021,7.38443361,135.42,135.34,5.73494358]
[1764545639205,7.38443361,135.42,135.36,5.04494358]
[1764545639604,7.38443361,135.42,135.37,0.69]
[1764545639807,30.89046122,135.42,135.37,0.69]
[1764545640000,25.84551764,135.42,135.37,0.69]
[1764545640208,30.89046122,135.42,135.37,0.69]
[1764545640921,5.04494358,135.38,135.33,0.69]
[1764545641111,5.04494358,135.36,135.33,0.69]
[1764545641319,5.04494358,135.37,135.33,0.69]
[1764545641623,5.04494358,135.36,135.33,0.69]
[1764545641928,25.85124455,135.39,135.33,0.69]
[1764545642107,5.04494358,135.37,135.33,0.69]
[1764545642498,30.89618813,135.39,135.33,0.69]
[1764545642898,25.8481935,135.41,135.35,5.04494358]
[1764545643219,25.8481935,135.41,135.33,8.07908098]
[1764545643220,30.89313708,135.41,135.34,5.04494358]
[1764545643421,12.43030631,135.41,135.34,5.73494358]
[1764545643618,7.38536273,135.41,135.35,5.73494358]
[1764545643823,7.38536273,135.41,135.36,8.36494358]
[1764545644126,7.38443361,135.42,135.37,0.69]
[1764545644430,12.42937719,135.42,135.37,0.69]
[1764545644637,7.38279808,135.45,135.37,8.07692822]
[1764545644946,7.38279808,135.45,135.39,5.04494358]
[1764545645533,7.38279808,135.45,135.4,0.69]
[1764545645734,7.38279808,135.45,135.41,3.32]
[1764545645936,5.04494358,135.44,135.4,0.69]
[1764545646108,7.38279808,135.45,135.4,8.07550048]
[1764545646312,7.38279808,135.45,135.4,13.12044406]
[1764545646521,7.38279808,135.45,135.41,0.69]
[1764545646720,7.38279808,135.45,135.41,5.73494358]
[1764545647022,7.38279808,135.45,135.41,0.69]
[1764545647215,7.38279808,135.45,135.42,0.69]
[1764545647534,5.04494358,135.43,135.38,4.01]
[1764545647739,5.04494358,135.4,135.37,0.69]
[1764545647910,5.70494358,135.44,135.34,0.69]
[1764545647911,5.04494358,135.38,135.34,0.69]
[1764545648115,5.04494358,135.37,135.34,0.69]
[1764545648634,5.04494358,135.36,135.34,0.69]
[1764545648840,5.04494358,135.35,135.3,25.8684405]
[1764545649043,0.66,135.39,135.32,0.69]
[1764545649044,5.04494358,135.34,135.32,0.69]
[1764545649245,5.04494358,135.33,135.29,3.32]
[1764545649545,5.04494358,135.32,135.29,7.39152237]
[1764545649733,5.04494358,135.32,135.3,0.69]
[1764545650439,5.04494358,135.31,135.3,0.69]
[1764545650742,5.04494358,135.31,135.28,0.69]
[1764545651113,5.04494358,135.29,135.24,0.69]
[1764545651312,5.04494358,135.27,135.24,0.69]
[1764545651529,12.43721695,135.28,135.24,0.69]
[1764545651724,5.04494358,135.25,135.21,0.69]
[1764545651927,5.04494358,135.24,135.21,0.69]
[1764545652234,5.04494358,135.26,135.21,0.69]
[1764545652435,26.5324626,135.28,135.21,0.69]
[1764545652436,5.04494358,135.25,135.21,0.69]
[1764545653040,0.66,135.32,135.21,5.73494358]
[1764545653221,5.04494358,135.26,135.22,3.32]
[1764545653426,5.04494358,135.25,135.22,0.69]
[1764545653632,0.66,135.3,135.23,0.69]
[1764545653810,5.04494358,135.26,135.23,0.69]
[1764545654010,5.04494358,135.27,135.23,0.69]
[1764545654425,5.04494358,135.28,135.23,0.69]
[1764545654639,5.04494358,135.27,135.23,0.69]
[1764545655253,5.04494358,135.28,135.23,8.08463993]
[1764545655458,7.39043677,135.31,135.24,5.04494358]
[1764545655752,30.91147228,135.31,135.25,0.69]
[1764545656325,29.91147228,135.31,135.25,0.69]
[1764545657249,30.57147228,135.31,135.25,0.69]
[1764545657457,6.39043677,135.31,135.28,5.04494358]
[1764545657660,7.38995436,135.32,135.28,5.04494358]
[1764545657835,13.09489794,135.32,135.26,5.73494358]
[1764545658224,31.56962451,135.32,135.26,0.69]
[1764545658465,5.04494358,135.27,135.2,0.69]
[1764545658760,0.66,135.31,135.2,5.73494358]
[1764545658761,30.92103407,135.26,135.2,5.73494358]
[1764545658936,30.92103407,135.26,135.19,14.57811542]
[1764545658937,5.04494358,135.25,135.19,3.8611985]
[1764545659142,8.05271213,135.27,135.21,5.04494358]
[1764545659457,8.05271213,135.27,135.21,0.69]
[1764545659662,7.39271213,135.27,135.22,5.04494358]
[1764545659830,7.39271213,135.27,135.22,5.73494358]
[1764545660157,7.39271213,135.27,135.23,0.69]
[1764545661435,15.29318266,135.27,135.23,0.69]
[1764545662526,7.55271213,135.27,135.21,0.69]
[1764545662747,7.90047053,135.26,135.21,0.69]
[1764545663561,7.39371534,135.25,135.21,8.59047053]
[1764545663858,7.39371534,135.25,135.21,0.69]
[1764545664156,7.39371534,135.25,135.22,0.71]
[1764545664450,7.39333411,135.26,135.22,0.71]
[1764545664750,3.32,135.29,135.22,0.71]
[1764545664950,7.39253868,135.28,135.24,7.90047053]
[1764545665459,7.3915293,135.29,135.25,0.71]
[1764545666253,7.38879858,135.34,135.28,7.90047053]
[1764545666455,7.38879858,135.34,135.31,7.90047053]
[1764545666743,7.38879858,135.34,135.32,7.90047053]
[1764545667164,7.38716111,135.37,135.33,8.58047053]
[1764545667362,7.38716111,135.37,135.35,7.90047053]
[1764545667543,25.8493353,135.4,135.35,8.58047053]
[1764545668045,25.8493353,135.4,135.36,0.68]
[1764545668444,25.8493353,135.4,135.36,8.58047053]
[1764545668838,25.8493353,135.4,135.34,3.32]
[1764545668839,7.90047053,135.39,135.34,3.32]
[1764545669151,7.90047053,135.39,135.34,4.0]
[1764545669349,7.90047053,135.39,135.35,0.68]
[1764545669662,33.74980583,135.4,135.35,0.68]
[1764545670457,7.38552437,135.4,135.35,15.96856338]
[1764545670762,7.38552437,135.4,135.36,8.58047053]
[1764545671066,7.38491691,135.42,135.37,7.90047053]
[1764545671359,7.38491691,135.42,135.38,0.68]
[1764545671656,15.28538744,135.42,135.38,0.68]
[1764545671869,7.38491691,135.42,135.38,0.68]
[1764545672634,33.74647147,135.42,135.36,11.22047053]
[1764545672848,33.74647147,135.42,135.36,8.58047053]
[1764545673145,25.84600094,135.42,135.39,7.90047053]
[1764545673458,7.90047053,135.43,135.37,4.0]
[1764545673766,7.38443361,135.42,135.37,11.90047053]
[1764545674247,7.38443361,135.42,135.38,0.68]
[1764545674569,7.38443361,135.42,135.38,8.58047053]
[1764545675062,7.38443361,135.42,135.39,0.68]
[1764545675953,7.38388835,135.43,135.39,0.68]
[1764545676683,7.38388835,135.43,135.39,8.58047053]
[1764545677050,7.38279808,135.45,135.4,8.58047053]
[1764545677243,7.38279808,135.45,135.41,7.90047053]
[1764545677444,7.38279808,135.45,135.41,8.58047053]
[1764545677752,7.5822997,135.46,135.42,8.58047053]
[1764545677949,7.5822997,135.46,135.43,7.90047053]
[1764545678149,7.5822997,135.46,135.43,8.58047053]
[1764545678350,7.5822997,135.46,135.44,0.68]
[1764545678351,0.2,135.46,135.44,0.68]
[1764545678547,7.58231184,135.46,135.44,0.68]
[1764545678779,7.58231184,135.46,135.42,8.58047053]
[1764545679267,7.58231184,135.46,135.43,0.68]
[1764545679768,7.58231184,135.46,135.42,0.68]
[1764545680348,7.58231184,135.46,135.38,7.38608919]
[1764545680349,33.93841502,135.46,135.38,7.38608919]
[1764545680557,7.90047053,135.44,135.39,0.68]
[1764545680758,8.06047053,135.45,135.39,8.58047053]
[1764545680962,0.16,135.45,135.4,7.90047053]
[1764545681460,7.38334317,135.44,135.4,0.68]
[1764545682061,7.38334317,135.44,135.37,18.46684563]
[1764545682062,8.06047053,135.43,135.37,0.68]
[1764545682270,7.90047053,135.42,135.37,0.68]
[1764545682473,7.90047053,135.41,135.37,0.68]
[1764545682650,25.84170111,135.44,135.39,7.90047053]
[1764545682847,25.84170111,135.44,135.37,0.68]
[1764545683047,7.90047053,135.4,135.35,4.0]
[1764545683365,7.90047053,135.41,135.36,0.68]
[1764545683545,7.38552437,135.4,135.36,0.68]
[1764545683873,6.88552437,135.4,135.36,0.68]
[1764545684369,6.88552437,135.4,135.37,7.90047053]
[1764545684747,6.88552437,135.4,135.38,0.68]
[1764545685276,25.84773436,135.41,135.38,0.68]
[1764545685967,7.90047053,135.4,135.35,0.68]
[1764545686157,7.90047053,135.4,135.36,0.68]
[1764545686543,33.74820489,135.41,135.36,0.68]
[1764545687677,7.90047053,135.39,135.34,0.68]
[1764545688341,7.90047053,135.39,135.3,53.26347029]
[1764545688342,7.90047053,135.39,135.3,16.308864]
[1764545688547,7.90047053,135.35,135.31,0.68]
[1764545688855,7.90047053,135.36,135.31,0.68]
[1764545689576,7.38825267,135.35,135.31,0.68]
[1764545689949,7.38769462,135.37,135.31,0.68]
[1764545690157,7.38769462,135.37,135.33,7.90047053]
[1764545690666,7.38769462,135.37,135.34,0.68]
[1764545693477,25.85346352,135.38,135.34,0.68]
[1764545693662,33.75393405,135.38,135.34,0.68]
[1764545694954,25.85346352,135.38,135.34,0.68]
[1764545695169,33.75393405,135.38,135.34,0.68]
[1764545695477,25.85346352,135.38,135.34,0.68]
[1764545695677,33.75393405,135.38,135.34,0.68]
[1764545695872,33.75393405,135.38,135.32,8.61047053]
[1764545695873,33.91393405,135.38,135.32,8.61047053]
[1764545696279,7.90047053,135.35,135.3,0.71]
[1764545696491,0.16,135.37,135.3,0.71]